bitfinex-derivatives/quotes_SOLF0:USTF0_20240816
["timestamp","ask_amount","ask_price","bid_price","bid_amount"]
[1723816895640,51.28,139.88,139.75,51.28]
[1723816896434,51.28,139.86,139.73,10.18]
[1723816896638,3.5753,139.82,139.78,3.5761]
[1723816896939,51.28,139.86,139.73,61.46]
[1723816897531,0.05059149,139.83,139.8,0.05365873]
[1723816897832,0.05059149,139.83,139.82,3.5751]
[1723816898037,51.28,139.9,139.78,51.28]
[1723816898334,51.28,139.9,139.79,1.2612]
[1723816899144,51.28,139.93,139.81,51.28]
[1723816899337,51.28,139.95,139.83,51.28]
[1723816899642,51.28,139.98,139.86,51.28]
[1723816900137,3.5716,139.96,139.86,51.28]
[1723816900333,0.0477319,139.9,139.86,51.28]
[1723816900729,0.0477319,139.9,139.88,3.5734]
[1723816900932,0.0477319,139.9,139.82,1.3351]
[1723816901136,51.28,139.91,139.82,1.3351]
[1723816901943,0.05275955,139.87,139.85,0.04963941]
[1723816902334,0.05275955,139.87,139.85,3.62393941]
[1723816902528,0.05275955,139.87,139.85,0.04963941]
[1723816902842,3.62665955,139.87,139.85,0.04963941]
[1723816903037,0.05275955,139.87,139.85,0.04963941]
[1723816903248,51.28,139.86,139.85,0.04963941]
[1723816903438,54.8541,139.86,139.85,0.04963941]
[1723816903644,3.5741,139.86,139.85,0.04963941]
[1723816904339,0.05275955,139.87,139.85,0.04963941]
[1723816904543,0.05275955,139.87,139.77,2.5498]
[1723816904544,51.28,139.86,139.77,2.5498]
[1723816904742,51.28,139.84,139.77,2.5498]
[1723816905044,51.28,139.84,139.77,1.2886]
[1723816905244,3.5754,139.81,139.77,4.8649]
[1723816905639,51.28,139.84,139.77,4.8649]
[1723816905839,3.5749,139.83,139.79,3.5758]
[1723816906139,0.0458122,139.8,139.78,0.05461875]
[1723816907551,51.28,139.79,139.78,0.05461875]
[1723816907843,51.28,139.79,139.72,1.3759]
[1723816908546,51.28,139.79,139.7,1.3224]
[1723816908945,51.28,139.76,139.7,1.3224]
[1723816909146,51.28,139.76,139.67,1.3371]
[1723816909446,51.33093252,139.76,139.73,0.05226347]
[1723816909651,51.28,139.74,139.66,1.3241]
[1723816909945,51.28,139.71,139.61,1.3371]
[1723816910148,51.28,139.71,139.61,2.6612]
[1723816910846,51.28,139.69,139.61,2.6612]
[1723816911050,3.5794,139.66,139.61,6.2415]
[1723816911344,39.37285201,139.8,139.61,6.2415]
[1723816911345,51.28,139.74,139.62,51.28]
[1723816911552,3.5783,139.7,139.65,3.5792]
[1723816911742,0.05161881,139.67,139.65,0.05296651]
[1723816912146,0.05161881,139.67,139.65,3.63216651]
[1723816912443,0.05161881,139.67,139.65,0.05296651]
[1723816912748,3.578,139.71,139.67,3.5788]
[1723816912944,3.578,139.71,139.65,0.05296651]
[1723816913548,3.578,139.71,139.62,51.28]
[1723816913549,51.28,139.82,139.69,51.28]
[1723816913752,51.28,139.82,139.7,2.6626]
[1723816913945,9.42,139.83,139.71,51.28]
[1723816914249,51.28,139.84,139.71,51.28]
[1723816914447,3.5755,139.81,139.76,3.5764]
[1723816914744,51.28,139.84,139.71,51.28]
[1723816914943,3.5753,139.82,139.74,51.28]
[1723816915143,0.05085051,139.78,139.74,51.28]
[1723816915339,51.28,139.86,139.74,51.28]
[1723816915551,51.28,139.94,139.8,51.28]
[1723816915737,51.28,139.94,139.81,2.6575]
[1723816915945,3.5735,139.89,139.84,3.5744]
[1723816916250,51.28,139.94,139.81,6.2929413]
[1723816916450,51.28,139.94,139.85,3.5741]
[1723816916848,51.28,139.96,139.82,51.28]
[1723816917155,0.0493813,139.88,139.85,51.28]
[1723816917348,51.28,139.98,139.85,51.28]
[1723816917647,51.28,140.01,139.89,51.28]
[1723816917953,3.5719,139.95,139.9,9.42]
[1723816918151,51.28,140.01,139.9,9.42]
[1723816918349,51.28,139.98,139.88,0.04719773]
[1723816918548,51.28,139.98,139.89,3.5733]
[1723816918750,51.28,139.98,139.86,9.42]
[1723816918946,51.28,139.93,139.81,6.2929413]
[1723816919246,51.28,139.93,139.84,9.42]
[1723816919444,51.28,139.91,139.81,6.2327]
[1723816919645,51.28,139.91,139.81,2.6575]
[1723816920046,51.28,139.91,139.81,6.2328]
[1723816920242,51.28,139.88,139.81,2.6575]
[1723816920853,51.28,139.86,139.75,9.42]
[1723816921078,3.5751,139.82,139.75,9.42]
[1723816921245,51.28,139.84,139.75,9.42]
[1723816921551,54.8546,139.84,139.83,0.04565233]
[1723816921852,51.28,139.84,139.7,2.596]
[1723816922055,3.5763,139.78,139.7,2.596]
[1723816922351,0.05470377,139.81,139.7,53.876]
[1723816922748,0.05470377,139.81,139.72,51.28]
[1723816923059,51.28,139.86,139.72,51.28]
[1723816923249,51.28,139.86,139.7,2.596]
[1723816923250,51.28,139.86,139.74,51.28]
[1723816923448,51.28,139.86,139.75,4.85455712]
[1723816923955,0.04850582,139.78,139.75,1.3151]
[1723816924861,51.28,139.86,139.75,1.3151]
[1723816925359,51.28,139.84,139.75,0.0507144]
[1723816925855,0.04869301,139.78,139.75,0.0507144]
[1723816926051,14.2807,140.02,139.77,51.28]
[1723816926245,51.28,139.91,139.78,9.42]
[1723816926451,3.5729,139.91,139.79,53.9095]
[1723816926656,51.28,139.93,139.79,53.9095]
[1723816927064,3.5733,139.89,139.79,53.9095]
[1723816927449,3.5729,139.91,139.87,3.5737]
[1723816927651,51.28,139.99,139.85,64.19762717]
[1723816927858,51.28,139.99,139.85,60.7]
[1723816928054,3.5724,139.93,139.85,60.7]
[1723816928369,0.05453955,139.87,139.85,64.23656626]
[1723816928552,52.28,140.01,139.91,3.5726]
[1723816928769,1.0,140.01,139.9,51.28]
[1723816928964,1.3369,140.05,139.92,51.28]
[1723816929258,1.3369,140.05,139.95,3.5716]
[1723816929458,51.28,140.03,139.93,9.42]
[1723816929657,3.5712,139.98,139.93,3.5721]
[1723816929855,51.28,140.03,139.92,9.42]
[1723816930048,3.5709,139.99,139.92,9.42]
[1723816930253,51.28,140.03,139.9,51.28]
[1723816930454,0.05163461,140.01,139.99,0.05191658]
[1723816931452,9.42,140.08,139.95,51.28]
[1723816931659,51.28,140.09,139.95,51.28]
[1723816931660,3.5692,140.06,139.95,51.28]
[1723816931856,51.28,140.11,140.0,51.28]
[1723816932263,51.28,140.11,140.04,3.5694]
[1723816932264,3.5682,140.09,140.04,3.5694]
[1723816932462,51.28,140.11,140.01,1.3196]
[1723816932856,0.0473927,140.07,140.01,1.3196]
[1723816933861,0.0473927,140.07,140.05,0.0459814]
[1723816935761,9.4673927,140.07,140.05,0.0459814]
[1723816935958,0.0473927,140.07,140.05,0.0459814]
[1723816938361,0.0473927,140.07,140.06,3.569]
[1723816938857,51.28,140.17,140.05,0.0459814]
[1723816939254,51.28,140.17,140.04,51.28]
[1723816939459,51.28,140.17,140.06,3.5689]
[1723816939669,51.28,140.14,140.03,1.2514]
[1723816939970,51.28,140.11,140.0,1.3567]
[1723816940156,51.28,140.09,140.0,1.3567]
[1723816940466,3.5684,140.08,140.07,0.05031247]
[1723816940676,51.28,140.09,139.98,1.3155]
[1723816940859,3.5697,140.03,139.99,3.5706]
[1723816941056,51.28,140.06,139.95,51.28]
[1723816941268,51.28,140.04,139.93,2.6818]
[1723816941457,51.28,140.04,139.91,3.5727]
[1723816941458,51.28,140.02,139.91,3.5727]
[1723816941857,3.5717,139.96,139.91,3.5727]
[1723816942073,51.28,140.02,139.91,3.5727]
[1723816942269,51.28,140.02,139.9,51.28]
[1723816942565,51.28,140.02,139.92,51.28]
[1723816942566,9.22,140.02,139.92,51.28]
[1723816942966,9.22,140.07,139.94,51.28]
[1723816943160,0.04836073,139.98,139.95,0.05408625]
[1723816943766,0.04836073,139.98,139.97,3.5712]
[1723816943965,60.5,140.07,139.96,51.28]
[1723816944169,60.5,140.07,139.92,51.28]
[1723816944370,60.5,140.07,139.97,3.5712]
[1723816944560,0.04613555,139.99,139.96,0.04542319]
[1723816944759,0.04613555,139.99,139.98,3.571]
[1723816944968,3.5696,140.04,139.97,52.5932]
[1723816945167,79.84,140.09,139.97,52.5932]
[1723816945461,3.5688,140.07,139.97,52.5932]
[1723816945662,9.22,140.1,140.0,51.28]
[1723816946068,9.22,140.1,139.97,52.5932]
[1723816946268,9.22,140.1,140.04,0.04793837]
[1723816946269,51.33262059,140.06,140.04,0.04793837]
[1723816946570,51.33262059,140.06,139.97,1.3132]
[1723816946769,51.28,140.06,139.97,4.8843]
[1723816947069,51.28,140.06,139.93,9.22]
[1723816947070,3.5705,140.0,139.93,9.22]
[1723816947376,51.28,140.06,139.95,3.5717]
[1723816947569,3.5707,140.0,139.93,9.22]
[1723816947764,51.28,140.06,139.93,9.22]
[1723816947965,3.5652558,140.08,139.92,52.5932]
[1723816947966,0.05447765,139.98,139.95,0.05301452]
[1723816948181,3.5715,139.96,139.95,0.05301452]
[1723816948572,3.5722,139.94,139.88,51.28]
[1723816948773,51.28,139.98,139.87,10.5365]
[1723816948973,51.28,139.94,139.82,51.28]
[1723816949164,3.5735,139.89,139.84,3.5745]
[1723816949368,51.28,139.94,139.81,1.3192]
[1723816949866,9.22,139.95,139.78,1.3165]
[1723816949867,51.28,139.91,139.78,1.3165]
[1723816950562,1.0,139.93,139.82,51.28]
[1723816950773,3.5733,139.9,139.86,0.04725229]
[1723816951073,9.22,139.92,139.86,0.04725229]
[1723816951269,9.22,139.94,139.86,0.04725229]
[1723816951470,9.22,139.96,139.86,0.04725229]
[1723816951774,1.3793,140.0,139.87,51.28]
[1723816951980,51.28,139.98,139.86,0.04725229]
[1723816952169,51.28,139.98,139.88,3.5734]
[1723816952384,51.28,139.98,139.86,0.04725229]
[1723816952878,3.5722,139.94,139.89,3.5731]
[1723816953277,3.5717,139.96,139.89,51.28]
[1723816953764,1.3793,140.0,139.89,51.28]
[1723816954372,0.04734842,139.93,139.89,51.28]
[1723816954572,0.04734842,139.93,139.9,0.05425177]
[1723816955475,3.5728,139.91,139.9,0.05425177]
[1723816956276,51.28,139.94,139.82,10.5403]
[1723816956872,51.28,139.94,139.8,51.28]
[1723816956873,51.28,139.91,139.78,1.3688]
[1723816957081,51.28,139.91,139.78,1.3868]
[1723816957479,51.28,139.91,139.8,3.5754]
[1723816957673,51.28,139.91,139.78,1.3868]
[1723816957875,3.5747,139.84,139.78,1.3868]
[1723816958075,51.28,139.89,139.78,1.3868]
[1723816958280,3.5749,139.83,139.78,1.3868]
[1723816958480,0.0527477,139.86,139.83,0.05182952]
[1723816958894,3.5746,139.84,139.83,0.05182952]
[1723816959079,51.3327477,139.86,139.75,3.5767]
[1723816959279,51.3327477,139.86,139.74,53.7857]
[1723816959476,3.5752,139.82,139.74,53.7857]
[1723816959698,9.22,139.88,139.77,51.28]
[1723816960080,3.5748,139.84,139.79,3.5757]
[1723816960282,9.22,139.88,139.77,51.28]
[1723816960580,3.5744,139.85,139.77,54.8561]
[1723816960786,0.0529459,139.84,139.81,0.04691921]
[1723816961184,3.6277459,139.84,139.81,0.04691921]
[1723816961381,0.0529459,139.84,139.81,0.04691921]
[1723816961779,3.5748,139.83,139.81,0.04691921]
[1723816962085,0.0529459,139.84,139.81,0.04691921]
[1723816962283,3.575,139.83,139.81,0.04691921]
[1723816962588,0.0529459,139.84,139.81,0.04691921]
[1723816963188,3.5751,139.82,139.81,0.04691921]
[1723816963387,0.0529459,139.84,139.81,0.04691921]
[1723816964082,0.0529459,139.84,139.81,3.62201921]
[1723816964288,0.0529459,139.84,139.81,0.04691921]
[1723816965591,0.0529459,139.84,139.74,1.2545]
[1723816965892,51.28,139.82,139.72,1.3868]
[1723816966584,52.6079,139.82,139.69,51.28]
[1723816966784,4.8614704,139.82,139.76,0.04681957]
[1723816966993,0.05278828,139.78,139.76,0.04681957]
[1723816967292,3.5764,139.77,139.76,0.04681957]
[1723816968091,0.05278828,139.78,139.76,0.04681957]
[1723816969292,0.05278828,139.78,139.77,3.5764]
[1723816971089,8.96,139.87,139.79,3.5757]
[1723816971292,3.575,139.83,139.79,3.5757]
[1723816971494,8.96,139.87,139.77,3.5762]
[1723816971687,3.575,139.83,139.76,51.32681957]
[1723816972019,60.24,139.92,139.79,51.28]
[1723816972687,8.96,139.92,139.84,0.05205665]
[1723816972888,3.63670168,139.96,139.84,0.05205665]
[1723816972889,3.5732,139.9,139.84,0.05205665]
[1723816973091,0.04900366,139.87,139.84,0.05205665]
[1723816973293,51.28,139.96,139.84,0.05205665]
[1723816973492,3.5724,139.93,139.86,51.28]
[1723816974001,51.28,139.96,139.84,8.96]
[1723816974592,0.04899397,139.91,139.89,0.0528085]
[1723816974997,8.96,139.98,139.86,51.28]
[1723816975293,8.96,139.98,139.88,3.5733]
[1723816975590,8.96,139.98,139.84,8.96]
[1723816975591,3.573,139.9,139.89,0.0465173]
[1723816976092,3.573,139.9,139.84,8.96]
[1723816976093,0.0543347,139.91,139.84,8.96]
[1723816976406,0.0543347,139.91,139.88,0.05355619]
[1723816977096,3.5733,139.9,139.88,0.05355619]
[1723816977301,0.0543347,139.91,139.88,0.05355619]
[1723816978198,3.5733,139.89,139.88,0.05355619]
[1723816979590,3.5746,139.84,139.8,3.5754]
[1723816979794,51.28,139.91,139.79,1.2992]
[1723816980302,3.51502237,139.93,139.79,1.2992]
[1723816980303,0.16,139.92,139.79,1.2992]
[1723816980597,3.5746,139.84,139.79,1.2992]
[1723816980795,3.6036975,139.89,139.84,0.05384278]
[1723816981099,51.28,139.86,139.74,79.88]
[1723816981398,51.28,139.86,139.74,52.6063]
[1723816981597,51.28,139.84,139.71,52.5466]
[1723816981793,8.96,139.83,139.71,1.2666]
[1723816982301,3.5764,139.77,139.76,0.05505375]
[1723816982912,0.04976307,139.78,139.76,0.05505375]
[1723816985305,0.04976307,139.78,139.67,52.6499]
[1723816985904,3.5774,139.73,139.7,3.5781]
[1723816986105,51.28,139.79,139.67,56.3154518]
[1723816986400,8.96,139.8,139.69,51.28]
[1723816986831,0.04875548,139.75,139.73,3.5772]
[1723816987004,0.04875548,139.75,139.72,51.33401262]
[1723816987314,0.0495192,139.75,139.72,0.04574903]
[1723816988397,3.5774,139.73,139.72,0.04574903]
[1723816988999,3.5771,139.74,139.72,0.04574903]
[1723816989305,0.0495192,139.75,139.72,0.04574903]
[1723816989704,3.5774,139.73,139.72,0.04574903]
[1723816989899,0.0495192,139.75,139.72,0.04574903]
[1723816990199,3.5774,139.73,139.72,0.04574903]
[1723816991026,0.0495192,139.75,139.72,0.04574903]
[1723816991398,3.5774,139.73,139.72,0.04574903]
[1723816991904,0.0495192,139.75,139.72,0.04574903]
[1723816993502,0.0495192,139.75,139.73,3.5774]
[1723816993712,0.0495192,139.75,139.72,0.04574903]
[1723816995709,3.5774,139.73,139.72,0.04574903]
[1723816996810,0.0495192,139.75,139.72,0.04574903]
[1723816997405,3.6265192,139.75,139.72,3.62324903]
[1723816997612,0.0495192,139.75,139.72,0.04574903]
[1723816997813,0.0495192,139.75,139.74,3.5771]
[1723816998007,3.5759,139.79,139.73,51.28]
[1723816998315,55.82322366,139.85,139.74,1.2694]
[1723816998514,3.5763,139.78,139.75,3.5768]
[1723816998708,55.82322366,139.85,139.74,1.2694]
[1723816999010,55.82322366,139.85,139.75,3.5768]
[1723816999215,55.82322366,139.85,139.74,1.2694]
[1723816999216,0.04632036,139.81,139.78,0.05336014]
[1723816999709,3.5758,139.79,139.78,0.05336014]
[1723817001116,51.28,139.8,139.68,1.3743]
[1723817001418,51.28,139.77,139.68,1.3743]
[1723817001608,3.5778,139.72,139.68,1.3743]
[1723817001909,3.5778,139.72,139.68,4.9528]
[1723817002114,3.5778,139.72,139.68,1.3743]
[1723817002517,0.05051138,139.71,139.69,0.05245013]
[1723817003320,3.62861138,139.71,139.69,0.05245013]
[1723817003523,0.05051138,139.71,139.69,0.05245013]
[1723817003712,8.6,139.8,139.68,1.3743]
[1723817003918,51.28,139.77,139.68,1.3743]
[1723817004118,54.85797158,139.77,139.68,1.3743]
[1723817004325,3.5783,139.7,139.68,1.3743]
[1723817004526,54.85797158,139.77,139.68,1.3743]
[1723817004829,3.5783,139.7,139.68,1.3743]
[1723817005025,0.04801731,139.74,139.71,0.05116408]
[1723817005229,54.85797158,139.77,139.68,1.3743]
[1723817005415,0.0468346,139.74,139.71,0.04684015]
[1723817005929,3.5776,139.72,139.71,0.04684015]
[1723817006126,0.0468346,139.74,139.71,3.57917072]
[1723817006322,0.0468346,139.74,139.71,0.04684015]
[1723817008828,52.28,139.85,139.72,51.28]
[1723817009128,51.28,139.78,139.68,2.6081]
[1723817009332,51.28,139.78,139.68,6.16839116]
[1723817009333,54.90467255,139.78,139.68,6.16839116]
[1723817009531,54.90467255,139.78,139.68,14.76839116]
[1723817009735,51.28,139.76,139.68,1.2744]
[1723817010123,3.5786,139.69,139.65,7.15149441]
[1723817010334,51.33367461,139.74,139.63,1.3403]
[1723817010541,51.28,139.71,139.63,1.3403]
[1723817010723,51.28,139.76,139.66,0.0493033]
[1723817010943,51.28,139.74,139.66,0.0493033]
[1723817011131,0.05368911,139.68,139.66,0.0493033]
[1723817011332,0.05368911,139.68,139.65,3.5793]
[1723817011527,7.159,139.83,139.64,51.28]
[1723817011732,3.5772,139.74,139.7,3.6251343]
[1723817011937,54.78842837,139.81,139.7,0.0471343]
[1723817012129,54.78842837,139.81,139.7,3.67043862]
[1723817012433,51.28,139.81,139.71,1.2566]
[1723817012630,54.89543379,139.81,139.72,3.50202666]
[1723817012925,3.5772,139.74,139.71,1.2566]
[1723817013126,3.5772,139.74,139.71,4.9042314]
[1723817013329,3.5769,139.75,139.72,3.5776]
[1723817013531,52.8039,139.84,139.71,4.95589118]
[1723817013832,0.04717609,139.75,139.71,4.95589118]
[1723817014033,3.49236737,139.79,139.71,6.2563314]
[1723817014221,52.8039,139.84,139.76,0.04618889]
[1723817014222,51.28,139.81,139.76,0.04618889]
[1723817014423,8.6,139.8,139.76,0.04618889]
[1723817014631,3.5764,139.77,139.76,0.04618889]
[1723817015233,3.5781,139.71,139.68,8.6]
[1723817015428,51.28,139.76,139.63,8.6]
[1723817015623,51.28,139.76,139.63,3.65989075]
[1723817015932,51.28,139.76,139.62,52.604]
[1723817016124,51.28,139.71,139.63,3.5798]
[1723817016322,51.28,139.71,139.62,1.324]
[1723817016323,54.84652436,139.71,139.62,1.324]
[1723817016525,54.84652436,139.71,139.63,3.5799]
[1723817016739,54.89412802,139.71,139.68,0.05359971]
[1723817017127,54.89412802,139.71,139.62,1.324]
[1723817017328,54.89412802,139.71,139.6,1.3237]
[1723817017725,54.89412802,139.71,139.6,4.9042]
[1723817017726,3.5798,139.64,139.6,4.9042]
[1723817017931,54.84652436,139.71,139.58,1.324]
[1723817018430,0.05420184,139.66,139.63,0.04564029]
[1723817019035,3.5797,139.65,139.63,0.04564029]
[1723817019334,0.05420184,139.66,139.63,0.04564029]
[1723817019634,3.5797,139.64,139.63,0.04564029]
[1723817019828,0.05420184,139.66,139.63,0.04564029]
[1723817020230,3.5797,139.64,139.63,0.04564029]
[1723817021034,3.5795,139.65,139.63,0.04564029]
[1723817021239,0.05420184,139.66,139.63,3.59702711]
[1723817021428,0.05420184,139.66,139.65,3.5794]
[1723817021634,231.2578,139.75,139.63,3.61581432]
[1723817021937,3.5783,139.7,139.62,51.28]
[1723817022354,1.0,139.75,139.62,51.28]
[1723817022538,3.5786,139.69,139.65,3.5793]
[1723817022848,3.5786,139.69,139.67,0.0467876]
[1723817023637,3.5787,139.68,139.67,0.0467876]
[1723817025035,3.5785,139.69,139.67,0.0467876]
[1723817025233,0.05035948,139.7,139.67,0.0467876]
[1723817025739,0.05035948,139.7,139.69,3.5784]
[1723817026543,0.05035948,139.7,139.68,3.5786]
[1723817026737,0.05035948,139.7,139.67,8.3467876]
[1723817026936,0.05035948,139.7,139.68,3.5785]
[1723817027135,0.05035948,139.7,139.67,8.3467876]
[1723817027441,3.577,139.75,139.67,59.6267876]
[1723817027835,8.3,139.8,139.67,59.58]
[1723817028034,3.5775,139.73,139.69,3.5782]
[1723817028242,51.28,139.78,139.67,8.3]
[1723817028742,0.04737662,139.74,139.71,0.0470975]
[1723817028933,0.04737662,139.74,139.58,51.28]
[1723817028934,51.28,139.73,139.58,51.28]
[1723817029136,51.28,139.7,139.61,3.5804]
[1723817029536,3.5796,139.65,139.61,3.5804]
[1723817029737,54.85628474,139.7,139.59,8.3]
[1723817030156,3.5796,139.65,139.63,0.05488659]
[1723817030356,0.05036921,139.66,139.63,0.05488659]
[1723817030845,3.5797,139.65,139.63,0.05488659]
[1723817031039,0.05036921,139.66,139.63,0.05488659]
[1723817031243,3.62966921,139.66,139.63,0.05488659]
[1723817031745,0.05036921,139.66,139.63,0.05488659]
[1723817031948,0.05036921,139.66,139.63,3.59839894]
[1723817032142,0.05036921,139.66,139.63,0.05488659]
[1723817032337,0.05036921,139.66,139.63,54.94568988]
[1723817032540,51.28,139.75,139.63,51.33488659]
[1723817032844,51.28,139.75,139.66,3.579]
[1723817033347,3.5786,139.69,139.66,3.579]
[1723817033646,3.5786,139.69,139.67,3.5788]
[1723817033647,0.04649421,139.69,139.67,3.5788]
[1723817034076,0.04649421,139.69,139.66,0.05490634]
[1723817034746,3.5788,139.68,139.66,0.05490634]
[1723817035249,3.5789,139.67,139.66,0.05490634]
[1723817035951,3.5788,139.68,139.66,0.05490634]
[1723817036244,0.04649421,139.69,139.66,0.05490634]
[1723817036942,3.5789,139.67,139.66,0.05490634]
[1723817038337,3.5803,139.62,139.55,79.9]
[1723817038542,3.5803,139.62,139.55,51.28]
[1723817038741,52.544,139.68,139.55,51.28]
[1723817038942,3.5806,139.61,139.55,51.28]
[1723817039243,52.544,139.68,139.55,51.28]
[1723817039244,3.58656594,139.65,139.57,3.5814]
[1723817039450,51.28,139.66,139.53,8.3]
[1723817039639,3.52428426,139.65,139.54,1.3185]
[1723817039845,51.28,139.66,139.57,3.5814]
[1723817040245,51.28,139.66,139.6,0.04987607]
[1723817040454,0.04745381,139.63,139.6,0.04987607]
[1723817040643,3.5807,139.61,139.6,0.04987607]
[1723817041457,51.28,139.61,139.47,51.28]
[1723817041752,51.28,139.61,139.5,4.95654932]
[1723817042054,51.28,139.61,139.5,3.62794932]
[1723817042550,51.28,139.58,139.49,1.3185]
[1723817042751,51.28,139.6,139.49,52.5985]
[1723817042946,0.05193547,139.57,139.56,3.5817]
[1723817043149,0.05193547,139.57,139.56,3.59930667]
[1723817043548,3.5815,139.57,139.56,3.59930667]
[1723817043855,0.05175216,139.58,139.55,0.04889028]
[1723817044248,3.63305216,139.58,139.55,0.04889028]
[1723817044448,0.05175216,139.58,139.55,0.04889028]
[1723817044646,3.5817,139.56,139.55,0.04889028]
[1723817045551,3.5816,139.57,139.55,0.04889028]
[1723817045851,0.05175216,139.58,139.55,0.04889028]
[1723817046649,0.05175216,139.58,139.55,3.63079028]
[1723817046847,0.05175216,139.58,139.56,3.6509319]
[1723817047353,8.3,139.71,139.57,51.28]
[1723817047648,3.5799,139.63,139.58,1.2733]
[1723817047853,3.62919019,139.68,139.59,3.5808]
[1723817048246,3.5806,139.61,139.58,4.8545]
[1723817048451,51.28,139.66,139.58,1.2733]
[1723817048647,0.04627417,139.61,139.58,0.0490775]
[1723817048850,0.04627417,139.61,139.5,52.6601]
[1723817048851,54.9482253,139.61,139.52,8.3]
[1723817049047,51.28,139.59,139.51,1.2758]
[1723817049251,0.04734671,139.58,139.55,0.04892153]
[1723817049855,3.5817,139.56,139.55,0.04892153]
[1723817050857,51.28,139.56,139.46,8.3]
[1723817051057,51.28,139.56,139.46,9.6142]
[1723817051353,51.28,139.54,139.46,1.3142]
[1723817051656,3.5837,139.49,139.46,1.3142]
[1723817051850,0.05250502,139.51,139.49,0.04935919]
[1723817052051,0.05250502,139.51,139.46,1.3142]
[1723817052245,3.5833,139.5,139.49,0.05252927]
[1723817052450,0.05250502,139.51,139.41,1.2952]
[1723817052647,51.28,139.5,139.41,1.2952]
[1723817053155,51.28,139.5,139.41,4.8807]
[1723817053356,51.28,139.5,139.41,1.2952]
[1723817053653,0.05413122,139.47,139.44,0.04645851]
[1723817054358,3.63823122,139.47,139.44,0.04645851]
[1723817054659,0.05413122,139.47,139.44,0.04645851]
[1723817054852,3.5846,139.45,139.44,0.04645851]
[1723817055254,51.28,139.45,139.39,3.58633235]
[1723817055457,3.5858,139.41,139.39,3.58633235]
[1723817055648,51.28,139.45,139.36,6.3467]
[1723817055853,8.14,139.51,139.36,2.76]
[1723817056066,59.42,139.51,139.36,54.04]
[1723817056272,59.42,139.51,139.37,8.14]
[1723817056451,3.5847,139.45,139.4,3.5858]
[1723817056658,0.04835775,139.45,139.42,0.05438937]
[1723817057962,0.04835775,139.45,139.42,3.63948937]
[1723817058255,0.04835775,139.45,139.42,0.05438937]
[1723817059169,3.63295775,139.45,139.42,0.05438937]
[1723817059459,0.04835775,139.45,139.42,0.05438937]
[1723817060059,0.04835775,139.45,139.42,51.33438937]
[1723817060260,8.14,139.54,139.44,51.28]
[1723817060457,0.2056,139.58,139.4,1.3631]
[1723817060458,0.2056,139.58,139.46,51.28]
[1723817060654,0.2056,139.58,139.46,54.9305926]
[1723817060853,8.14,139.6,139.49,51.28]
[1723817061059,52.7651,139.67,139.54,51.28]
[1723817061357,52.7651,139.67,139.55,9.4011]
[1723817061558,52.7651,139.67,139.56,3.5065044]
[1723817061875,7.1544,139.74,139.55,10.6988]
[1723817061876,14.37000002,139.78,139.66,102.56]
[1723817062063,14.37000002,139.78,139.74,51.28]
[1723817062257,8.58,139.77,139.74,51.28]
[1723817062957,8.58,139.77,139.74,3.5769]
[1723817063155,0.2056,139.85,139.72,51.28]
[1723817063156,8.58,139.79,139.72,51.28]
[1723817063355,0.2056,139.85,139.74,51.28]
[1723817063555,8.58,139.84,139.74,51.28]
[1723817063758,51.28,139.82,139.65,75.34170054]
[1723817063971,51.28,139.79,139.66,51.28]
[1723817064156,0.0528228,139.77,139.66,54.86205569]